bitfinex-derivatives/quotes_ETHF0:USTF0_20250905
["timestamp","ask_amount","ask_price","bid_price","bid_amount"]
[1757071885713,0.684,4421.4,4421.3,1.36419]
[1757071886713,1.61226921,4421.7,4421.6,0.9571]
[1757071887014,0.3972,4421.7,4421.6,0.9571]
[1757071887207,0.684,4421.7,4421.6,0.9571]
[1757071888821,0.9594,4421.7,4421.6,0.9571]
[1757071889316,0.9594,4421.7,4421.6,0.5483]
[1757071889514,0.9594,4421.7,4421.6,0.2709]
[1757071889711,0.3972,4421.6,4421.0,3.6166]
[1757071889908,0.9594,4421.1,4421.0,4.1649]
[1757071890709,0.3972,4421.5,4421.4,0.5483]
[1757071890914,0.684,4421.5,4421.4,0.9571]
[1757071891117,1.73697135,4421.5,4421.4,0.9571]
[1757071891418,2.01237135,4421.5,4421.4,0.9571]
[1757071891619,2.17487135,4421.5,4421.4,0.9571]
[1757071895822,0.9594,4421.5,4421.4,0.9571]
[1757071896023,0.684,4421.5,4421.4,0.9571]
[1757071896626,1.1219,4421.5,4421.4,0.9571]
[1757071898326,1.1219,4421.5,4421.4,1.36418]
[1757071898826,0.6282,4421.7,4421.6,0.9571]
[1757071899128,1.96797135,4421.7,4421.6,1.36416]
[1757071899426,1.1904,4421.7,4421.6,0.9571]
[1757071899926,0.9594,4421.7,4421.6,1.36416]
[1757071901524,0.9594,4421.7,4421.6,0.5483]
[1757071904726,0.3972,4421.6,4421.5,3.2078]
[1757071904925,0.9594,4421.6,4421.5,3.4787]
[1757071905418,0.9594,4421.6,4421.5,4.57197]
[1757071908038,0.9594,4421.6,4421.5,4.1649]
[1757071908229,0.9594,4421.6,4421.5,3.7561]
[1757071908625,0.9594,4421.6,4421.5,3.4787]
[1757071909736,0.9594,4421.6,4421.5,4.55207]
[1757071911839,0.684,4421.6,4421.5,4.55207]
[1757071912739,0.9083,4422.1,4422.0,0.2568]
[1757071912939,0.5224,4421.8,4421.7,0.66385]
[1757071913136,1.96127135,4421.8,4421.7,1.33015]
[1757071915343,1.96127135,4421.8,4421.7,0.9231]
[1757071915844,1.96127135,4421.8,4421.7,1.33015]
[1757071916344,1.96127135,4421.8,4421.7,0.9231]
[1757071916544,1.96127135,4421.8,4421.7,1.33015]
[1757071917249,1.96127135,4421.8,4421.7,0.93465]
[1757071918059,1.96127135,4421.8,4421.7,1.33015]
[1757071919842,1.96127135,4421.8,4421.7,0.9231]
[1757071920851,1.96127135,4421.8,4421.5,3.2078]
[1757071921050,0.1623,4422.0,4421.2,0.231]
[1757071921051,0.1623,4421.5,4421.2,0.231]
[1757071921252,0.1623,4421.5,4421.0,3.4646]
[1757071921253,1.57537135,4421.1,4421.0,3.4646]
[1757071921655,1.57537135,4421.1,4421.0,4.1309]
[1757071921856,1.96127135,4421.1,4421.0,4.1309]
[1757071924857,0.1623,4421.5,4421.0,4.1309]
[1757071924858,0.3859,4421.4,4421.3,0.5276]
[1757071925058,0.6498,4421.4,4421.3,0.9231]
[1757071925356,0.9083,4421.4,4421.3,0.9231]
[1757071927161,0.6498,4421.4,4421.3,0.9231]
[1757071927658,0.9083,4421.4,4421.3,0.9231]
[1757071927861,0.9083,4421.4,4421.3,0.5276]
[1757071929852,0.3859,4421.3,4421.0,3.2078]
[1757071930160,0.9083,4421.1,4421.0,3.2078]
[1757071930859,0.9083,4421.1,4421.0,3.4646]
[1757071931264,0.9083,4421.1,4421.0,3.7354]
[1757071931464,0.9083,4421.1,4421.0,4.1309]
[1757071931965,0.9083,4421.1,4421.0,3.7354]
[1757071932951,0.9083,4421.1,4421.0,4.1309]
[1757071933655,0.6498,4421.1,4421.0,4.1309]
[1757071936165,0.1623,4422.0,4421.1,0.3955]
[1757071936470,1.1393,4421.9,4421.8,0.2568]
[1757071936858,1.1393,4421.9,4421.0,3.91801]
[1757071937064,0.5224,4421.4,4421.0,3.8343]
[1757071937268,1.57537135,4421.1,4421.0,4.0911]
[1757071937465,1.96127135,4421.1,4421.0,4.0911]
[1757071937665,1.96127135,4421.1,4421.0,3.6956]
[1757071939270,1.96127135,4421.1,4421.0,3.4646]
[1757071940162,1.96127135,4421.1,4421.0,4.1199]
[1757071940367,1.43887135,4421.1,4421.0,4.1199]
[1757071940668,1.97427135,4421.1,4421.0,3.4646]
[1757071941568,0.5354,4420.6,4420.5,3.4778]
[1757071941770,0.9392,4420.6,4420.5,3.4778]
[1757071941968,1.99217135,4420.6,4420.5,3.4778]
[1757071942369,1.99217135,4420.6,4420.5,4.1331]
[1757071942761,0.9392,4420.6,4420.5,4.1331]
[1757071942964,1.99217135,4420.6,4420.5,4.1331]
[1757071950870,1.99217135,4420.6,4420.5,3.7381]
[1757071951778,1.99217135,4420.6,4420.5,4.1331]
[1757071953177,0.4038,4421.4,4420.5,3.8792]
[1757071953369,1.71167135,4420.7,4420.6,0.9253]
[1757071953573,1.99217135,4420.7,4420.6,0.9253]
[1757071953775,0.9392,4420.7,4420.6,0.9253]
[1757071954775,0.9392,4420.7,4420.6,0.5303]
[1757071955278,0.9392,4420.7,4420.6,0.9253]
[1757071957280,0.2549,4421.2,4421.1,0.5303]
[1757071957581,0.6587,4421.2,4421.1,0.9253]
[1757071957784,0.6348,4421.4,4421.1,0.5303]
[1757071957983,1.05297135,4421.2,4421.1,0.9253]
[1757071958583,0.6348,4421.4,4421.2,0.395]
[1757071958783,1.05297135,4421.3,4421.2,0.9253]
[1757071959584,1.45677135,4421.3,4421.2,0.9253]
[1757071960277,3.2078,4422.1,4421.8,0.5303]
[1757071960580,1.0981,4422.0,4421.9,0.5303]
[1757071960777,1.0981,4422.0,4421.9,0.9253]
[1757071960977,2.15107135,4422.0,4421.9,0.9253]
[1757071962183,0.4038,4422.0,4421.9,0.9253]
[1757071963685,1.45677135,4422.0,4421.9,0.9253]
[1757071964784,1.71167135,4422.0,4421.9,0.9253]
[1757071965084,2.15107135,4422.0,4421.6,0.231]
[1757071965377,0.9392,4421.6,4421.5,3.4778]
[1757071965583,0.9392,4421.6,4421.5,4.1331]
[1757071969589,0.6587,4421.6,4421.5,4.1331]
[1757071975591,0.9313,4421.6,4421.5,4.1331]
[1757071976290,1.98427135,4421.6,4421.5,4.1331]
[1757071977491,1.71167135,4421.6,4421.5,4.1331]
[1757071977690,1.45677135,4421.6,4421.5,4.1331]
[1757071978292,1.71707135,4421.6,4421.5,4.1331]
[1757071980393,1.98967135,4421.6,4421.5,4.1331]
[1757071982893,1.98967135,4421.6,4421.5,3.2078]
[1757071983091,1.98967135,4421.6,4421.0,0.231]
[1757071983092,0.1555,4421.5,4421.0,0.231]
[1757071983294,0.9209,4421.1,4421.0,0.499]
[1757071983687,0.9209,4421.1,4421.0,1.1402]
[1757071984089,0.6483,4421.1,4421.0,1.1402]
[1757071984295,0.388,4421.1,4421.0,1.1402]
[1757071984791,0.6483,4421.1,4421.0,1.1402]
[1757071986100,0.388,4421.1,4421.0,1.1402]
[1757071986401,0.9209,4421.7,4421.6,0.9092]
[1757071988408,0.9209,4421.7,4421.6,0.268]
[1757071995107,0.9209,4421.7,4421.0,0.3758]
[1757071995311,0.9209,4421.7,4420.9,3.2078]
[1757071995312,0.9209,4421.2,4421.1,1.13538]
[1757071995514,0.9209,4421.4,4421.3,0.9092]
[1757072001016,0.388,4421.4,4421.3,0.9092]
[1757072001221,0.3662,4421.7,4421.6,0.4991]
[1757072001519,0.3662,4421.7,4421.6,0.8867]
[1757072003518,0.3662,4421.9,4421.6,0.4991]
[1757072003820,1.41917135,4421.8,4421.7,0.8867]
[1757072004321,0.3662,4421.8,4421.7,0.8867]
[1757072006727,0.6197,4421.8,4421.7,0.8867]
[1757072007220,0.8756,4421.8,4421.7,0.8867]
[1757072007416,0.1589,4422.0,4421.4,3.4591]
[1757072007417,1.0373,4421.5,4421.4,3.4591]
[1757072007725,1.0373,4421.5,4421.4,4.0945]
[1757072007919,0.6197,4421.5,4421.4,4.0945]
[1757072008223,0.3662,4421.5,4421.4,4.0945]
[1757072009222,0.1589,4422.0,4421.5,0.3876]
[1757072009521,0.3662,4422.3,4421.7,0.4991]
[1757072009729,1.41917135,4422.2,4422.1,0.8867]
[1757072010021,1.67267135,4422.2,4422.1,0.8867]
[1757072010226,0.6197,4422.2,4422.1,0.8867]
[1757072010816,0.8756,4422.2,4422.1,0.8867]
[1757072011725,3.2078,4422.9,4422.2,0.3876]
[1757072012024,0.5279,4422.0,4421.9,3.2078]
[1757072012821,0.7814,4422.0,4421.9,3.2078]
[1757072014527,1.0373,4422.0,4421.9,3.2078]
[1757072014727,1.0373,4422.0,4421.9,0.23]
[1757072020531,0.7814,4422.0,4421.9,0.23]
[1757072020727,0.7814,4422.0,4421.9,3.4378]
[1757072020933,0.5279,4422.0,4421.9,3.4378]
[1757072021433,0.5279,4422.0,4421.9,4.07097]
[1757072021632,0.5279,4422.0,4421.9,8.07097]
[1757072022032,0.3887,4423.5,4422.4,1.01747]
[1757072022033,0.3662,4423.4,4422.4,1.01747]
[1757072022235,0.4152,4423.5,4423.2,0.40691]
[1757072022528,1.04187135,4423.4,4423.3,41.03]
[1757072023032,0.8756,4423.4,4423.3,41.03]
[1757072024229,0.3662,4423.4,4423.3,41.03]
[1757072031040,0.3662,4423.4,4423.3,40.8]
[1757072031235,0.8901,4423.1,4423.0,3.2078]
[1757072031441,0.3875,4423.1,4423.0,3.67845865]
[1757072031633,0.3875,4423.1,4423.0,44.47845865]
[1757072032442,0.1617,4423.5,4423.2,0.40691]
[1757072032641,0.3875,4423.4,4423.3,0.23]
[1757072033342,0.3875,4423.4,4423.3,0.63691]
[1757072034338,0.3875,4423.4,4423.3,0.23]
[1757072035244,0.3875,4423.4,4423.3,0.63691]
[1757072037750,0.3875,4423.4,4423.3,4.63691]
[1757072038741,0.1617,4423.5,4423.4,0.4069]
[1757072039045,0.3875,4423.7,4423.4,4.0]
[1757072039246,0.3875,4423.7,4423.6,3.61468]
[1757072039449,0.5492,4424.0,4423.6,3.2078]
[1757072039749,0.3875,4423.9,4423.7,41.43685]
[1757072040442,0.1617,4424.0,4423.7,41.03]
[1757072041143,0.3875,4423.9,4423.7,41.43687]
[1757072041345,0.1617,4424.0,4423.7,45.03]
[1757072041653,0.3875,4424.4,4424.3,0.4068]
[1757072041844,0.3875,4424.4,4424.3,3.8446]
[1757072042452,0.3875,4424.4,4424.3,44.6446]
[1757072042652,0.3875,4424.4,4424.3,44.2378]
[1757072048665,0.3875,4424.4,4424.3,44.64461]
[1757072048864,0.3875,4424.4,4424.3,44.2378]
[1757072056371,0.3875,4424.4,4424.3,44.64461]
[1757072057068,0.3875,4424.4,4424.3,44.2378]
[1757072057772,0.3875,4424.4,4424.3,44.64461]
[1757072058473,0.3875,4424.4,4424.3,44.2378]
[1757072059071,0.3875,4424.4,4424.3,44.64461]
[1757072062373,0.5258,4424.5,4424.4,0.4068]
[1757072062766,0.3641,4424.9,4424.4,0.22602]
[1757072062968,0.5258,4425.0,4424.8,3.2078]
[1757072063172,0.5258,4425.0,4424.9,0.23]
[1757072063472,0.5258,4425.0,4424.9,0.63676]
[1757072064074,0.1617,4425.0,4424.9,0.63676]
[1757072065277,0.5258,4425.0,4424.9,0.63676]
[1757072065978,0.5094,4425.5,4425.4,0.40671]
[1757072066168,0.5094,4425.5,4425.4,3.84451]
[1757072066569,0.5094,4425.5,4425.4,3.4378]
[1757072066775,0.5094,4425.5,4425.4,44.2378]
[1757072069077,0.5094,4425.5,4425.4,44.0078]
[1757072069276,0.5094,4425.5,4425.4,44.2378]
[1757072072174,5.0169,4425.5,4424.8,3.2078]
[1757072072379,0.8716,4424.9,4424.8,3.2078]
[1757072072574,0.8716,4424.9,4424.7,0.23]
[1757072073075,0.8716,4424.9,4424.3,3.2078]
[1757072073280,0.8716,4424.4,4424.3,3.2078]
[1757072073580,0.8716,4424.4,4424.3,3.4378]
[1757072074678,0.6108,4424.4,4424.3,3.4378]
[1757072075281,0.3641,4424.4,4424.3,3.4378]
[1757072075885,0.6108,4424.4,4424.3,3.4378]
[1757072077985,0.61173136,4424.4,4424.3,3.4378]
[1757072079586,0.87253136,4424.4,4424.3,3.4378]
[1757072083984,0.87253136,4424.4,4424.3,3.2078]
[1757072084179,0.6108,4423.4,4423.3,31.187]
[1757072084380,0.6108,4423.4,4422.9,3.2078]
[1757072084381,1.0244,4423.0,4422.9,3.2078]
[1757072084584,1.0244,4422.5,4422.4,3.4378]
[1757072088788,0.7701,4422.5,4422.4,3.4378]
[1757072088987,1.0215,4422.5,4422.4,3.4378]
[1757072089186,1.0215,4422.5,4422.4,3.2078]
[1757072089389,5.0215,4422.5,4422.0,0.23]
[1757072089584,1.0215,4422.5,4422.0,0.23]
[1757072089786,0.8918,4422.1,4422.0,0.23]
[1757072090185,0.8918,4421.3,4421.2,2.82313578]
[1757072090487,0.8918,4421.3,4421.2,3.05313578]
[1757072090688,0.8918,4421.3,4421.2,2.82313578]
[1757072090889,0.8918,4421.3,4421.2,3.05313578]
[1757072092689,0.8918,4421.3,4421.2,0.23]
[1757072093693,0.3872,4421.2,4421.0,3.2078]
[1757072093894,0.8918,4421.2,4421.1,0.23]
[1757072095490,0.3872,4421.1,4421.0,3.2078]
[1757072095798,0.6404,4421.1,4421.0,3.2078]
[1757072096089,0.3872,4421.1,4421.0,3.2078]
[1757072097689,0.1496,4421.5,4421.0,7.2078]
[1757072097890,0.5368,4422.0,4421.9,0.40703]
[1757072098092,0.5368,4422.0,4421.9,3.84483]
[1757072100393,0.5368,4422.0,4421.9,7.84483]
[1757072100588,1.0414,4422.0,4421.9,7.61483]
[1757072100784,1.0414,4421.5,4421.4,3.2078]
[1757072101195,1.0414,4421.5,4421.4,3.4378]
[1757072104290,5.0414,4421.5,4420.7,3.2078]
[1757072104489,0.8918,4420.9,4420.8,0.23]
[1757072107698,0.6404,4420.9,4420.8,0.23]
[1757072108408,0.8918,4420.9,4420.8,0.23]
[1757072110597,0.8918,4420.8,4420.7,0.23]
[1757072115107,0.8918,4420.8,4420.7,41.03]
[1757072117105,0.6404,4420.8,4420.7,41.03]
[1757072129021,0.8898,4420.8,4420.4,3.2078]
[1757072129227,0.2626,4421.0,4420.4,3.2078]
[1757072129228,1.0039,4420.5,4420.4,3.2078]
[1757072129423,1.0039,4420.5,4420.4,3.4378]
[1757072129725,1.0039,4420.5,4420.4,44.2378]
[1757072130827,1.0039,4420.5,4420.4,3.4378]
[1757072131524,4.86522,4420.5,4419.7,2.82313578]
[1757072131729,0.8578,4419.8,4419.7,3.05313578]
[1757072132628,0.8578,4419.8,4419.7,0.23]
[1757072135430,0.8578,4419.8,4419.1,40.8]
[1757072135431,0.8578,4419.2,4419.1,40.8]
[1757072135732,0.8578,4419.2,4419.1,41.03]
[1757072136628,0.8578,4419.2,4419.1,0.23]
[1757072137231,0.6084,4419.2,4419.1,0.23]
[1757072138829,0.8578,4419.2,4419.1,0.23]
[1757072141245,0.1461,4419.5,4419.4,0.40726]
[1757072141246,0.511,4419.5,4419.4,0.40726]
[1757072141534,0.1461,4419.5,4419.4,3.84506]
[1757072141734,0.1461,4419.5,4419.4,44.64506]
[1757072142034,0.511,4419.5,4419.4,44.64506]
[1757072144228,0.511,4419.5,4419.4,44.2378]
[1757072149636,0.9756,4419.5,4419.4,3.4378]
[1757072150238,0.9756,4419.5,4419.4,0.23]
[1757072152334,4.9756,4419.5,4419.4,0.23]
[1757072152736,4.9756,4419.5,4419.1,0.23]
[1757072152937,0.9756,4419.5,4419.1,0.23]
[1757072154839,0.831,4419.2,4419.1,0.23]
[1757072155940,0.4646,4419.2,4418.8,3.2078]
[1757072156146,0.831,4418.9,4418.8,3.2078]
[1757072159043,0.831,4418.9,4418.5,2.82313578]
[1757072159044,0.4646,4418.9,4418.5,2.82313578]
[1757072159238,0.4646,4418.6,4418.5,2.82313578]
[1757072159438,0.831,4418.6,4418.5,2.82313578]
[1757072159841,5.05732,4418.6,4418.5,2.05373578]
[1757072160544,4.831,4418.6,4418.5,2.05373578]
[1757072160943,0.831,4418.6,4418.5,2.05373578]
[1757072161143,0.831,4418.6,4418.5,2.30233578]
[1757072161344,0.831,4418.6,4418.5,2.89773578]
[1757072161844,0.5958,4418.6,4418.5,2.89773578]
[1757072162049,0.3664,4418.6,4418.5,2.89773578]
[1757072162244,0.5958,4418.6,4418.5,2.54133578]
[1757072162451,0.831,4418.6,4418.5,2.05373578]
[1757072164745,0.831,4418.6,4418.5,2.30233578]
[1757072165452,0.5958,4418.6,4418.5,2.89773578]
[1757072167153,0.831,4418.6,4418.5,2.89773578]
[1757072167454,0.831,4418.6,4418.5,0.844]
[1757072171256,0.4646,4418.4,4418.3,0.23]
[1757072171450,0.831,4418.4,4418.0,3.61519]
[1757072171749,0.2294,4418.6,4418.5,0.844]
[1757072172054,0.6142,4419.0,4418.9,0.2486]
[1757072172255,0.9806,4419.0,4418.9,0.2486]
[1757072173748,0.9806,4419.0,4418.9,0.4876]
[1757072175262,0.5958,4419.0,4418.9,0.844]
[1757072175555,0.7454,4419.0,4418.9,0.844]
[1757072175755,0.9806,4419.0,4418.9,0.844]
[1757072175952,0.9806,4419.0,4418.9,0.4876]
[1757072180564,0.516,4419.0,4418.9,0.8374]
[1757072180762,0.762,4419.0,4418.9,0.8374]
[1757072181455,0.6124,4419.0,4418.9,0.8374]
[1757072181659,0.3664,4419.0,4418.9,0.8374]
[1757072184263,0.6124,4419.0,4418.9,0.8374]
[1757072184463,0.751,4419.0,4418.9,0.8374]
[1757072186267,0.6124,4419.0,4418.9,0.8374]
[1757072186766,0.6124,4419.0,4418.9,1.24471]
[1757072187666,0.6124,4419.0,4418.9,0.8374]
[1757072187973,0.9948,4419.0,4418.9,0.8374]
[1757072188162,0.9948,4419.0,4418.9,0.4876]
[1757072188769,0.9948,4419.0,4418.8,0.23]
[1757072188969,0.9781,4419.0,4418.9,0.23]
[1757072189365,0.6284,4419.0,4418.5,44.0078]
[1757072189565,0.8395,4418.9,4418.8,0.23]
[1757072189767,0.3497,4418.8,4418.0,2.838346]
[1757072189968,0.1386,4419.0,4418.0,2.838346]
[1757072189969,0.8395,4418.1,4418.0,3.078046]
[1757072190266,0.8395,4418.1,4418.0,44.108046]
[1757072191571,0.8395,4418.1,4418.0,44.515436]
[1757072191974,0.8395,4418.1,4418.0,44.863436]
[1757072192272,0.8395,4418.1,4418.0,44.633436]
[1757072192472,0.8395,4418.1,4418.0,44.863436]
[1757072192666,0.8395,4418.1,4418.0,44.285436]
[1757072192873,0.8395,4418.1,4418.0,44.515436]
[1757072194275,0.8395,4418.1,4418.0,44.108046]
[1757072194876,0.8395,4418.1,4418.0,43.878046]
[1757072195077,0.8395,4418.1,4418.0,44.108046]
[1757072195275,0.5957,4418.1,4418.0,44.515436]
[1757072195579,0.3497,4418.1,4418.0,44.863436]
[1757072196678,0.1131,4418.3,4418.2,0.64938]
[1757072196880,0.7088,4418.3,4418.2,0.8297]
[1757072197178,0.8395,4418.3,4418.2,1.0597]
[1757072197477,0.8395,4418.3,4418.2,41.8597]
[1757072198075,0.8395,4418.3,4418.2,41.2817]
[1757072198273,0.8395,4418.3,4418.2,41.2697]
[1757072199280,0.8395,4418.3,4418.2,41.0397]
[1757072199482,0.8395,4418.3,4418.2,41.2697]
[1757072201283,0.1131,4418.5,4418.4,0.242]
[1757072201480,0.5957,4419.1,4419.0,0.4817]
[1757072201676,0.5957,4419.1,4419.0,0.8297]
[1757072201877,0.3497,4419.4,4419.1,0.348]
[1757072202175,3.2078,4420.2,4419.3,0.8297]
[1757072202380,0.8395,4419.9,4419.8,0.2397]
[1757072202579,0.8395,4419.9,4419.8,0.4817]
[1757072202777,0.5957,4419.9,4419.8,0.8297]
[1757072203682,0.8395,4419.9,4419.8,0.8297]
[1757072203878,0.8395,4419.9,4419.8,0.4817]
[1757072207282,0.4898,4419.9,4419.4,3.2078]
[1757072207485,0.9781,4419.5,4419.4,3.6895]
[1757072207886,0.9781,4419.5,4419.4,4.0375]
[1757072208087,0.9781,4419.5,4419.4,3.2078]
[1757072208275,0.9781,4419.5,4419.4,3.675]
[1757072208478,4.6284,4419.5,4418.9,3.2078]
[1757072208674,0.6448,4418.5,4418.4,0.4672]
[1757072208885,0.6448,4418.5,4418.4,0.6972]
[1757072209284,0.9884,4418.5,4418.4,0.6972]
[1757072210585,0.9884,4418.5,4418.4,1.0339]
[1757072211689,0.9884,4418.5,4418.4,0.23]
[1757072211986,0.9884,4418.5,4418.4,0.6972]
[1757072212689,1.55866921,4421.2,4421.1,0.87431]
[1757072212991,1.21506921,4421.2,4421.1,4.53571]
[1757072213189,1.21506921,4421.2,4421.1,45.33571]
[1757072213389,1.21506921,4421.2,4421.1,49.33571]
[1757072213591,1.21506921,4421.2,4421.1,49.62721308]
[1757072214188,1.62009228,4421.7,4421.6,0.40706]
[1757072214492,1.62009228,4421.7,4421.6,0.93056308]
[1757072214990,1.96369228,4421.7,4421.6,0.93056308]
[1757072215390,1.62009228,4421.7,4421.6,0.93056308]
[1757072215887,0.1127,4422.3,4422.2,0.87421]
[1757072216091,0.1127,4422.3,4422.2,4.94911308]
[1757072216891,2.00806351,4422.9,4422.4,0.40698]
[1757072217091,2.50706351,4422.9,4422.8,0.2366]
[1757072217289,2.50706351,4422.9,4422.8,1.10230308]
[1757072217493,2.00806351,4422.9,4422.8,4.31010308]
[1757072218581,2.35166351,4422.9,4422.8,4.31010308]
[1757072218893,0.3436,4422.9,4422.8,4.31010308]
[1757072219093,0.3436,4422.9,4422.8,4.52206792]
[1757072219290,0.2585,4423.5,4422.9,0.40694]
[1757072219486,0.8426,4423.4,4423.3,0.2366]
[1757072219793,0.8426,4423.4,4423.3,0.97206792]
[1757072220994,0.8426,4423.4,4423.3,1.20266792]
[1757072221494,0.8426,4423.4,4423.3,0.97206792]
[1757072224596,0.8426,4423.4,4423.3,0.50346792]
[1757072224796,0.8426,4423.4,4423.3,0.73546792]
[1757072225397,0.8426,4423.4,4423.3,0.50346792]
[1757072225592,0.8426,4423.4,4423.3,0.73546792]
[1757072226514,0.8426,4423.4,4423.3,0.50346792]
[1757072226698,0.8426,4423.4,4423.3,0.73546792]
[1757072227098,0.8426,4423.4,4423.3,0.97206792]
[1757072227291,0.8426,4423.4,4423.3,0.74006792]
[1757072227486,0.8426,4423.4,4423.3,0.73546792]
[1757072227998,4.84344113,4423.4,4422.3,3.6148]
[1757072228196,0.3436,4423.3,4422.4,0.56528688]
[1757072228398,0.8426,4422.5,4422.4,0.8136]
[1757072228601,0.8426,4422.5,4422.4,1.0442]
[1757072229099,0.9884,4422.5,4422.4,1.0442]
[1757072229299,0.9884,4422.5,4422.4,0.6992]
[1757072229596,0.9884,4422.5,4422.3,44.0078]
[1757072229597,0.6448,4422.5,4422.3,44.0078]
[1757072229795,0.8426,4422.4,4422.3,0.232]
[1757072230499,0.3436,4422.3,4422.1,0.232]
[1757072230697,0.8426,4422.2,4421.9,41.145]
[1757072230900,0.4894,4422.0,4421.9,40.8]
[1757072231097,0.9884,4422.0,4421.9,0.232]
[1757072232200,0.6448,4422.0,4421.5,3.3224]
[1757072232392,0.499,4421.7,4421.6,0.8136]
[1757072232593,0.75779017,4421.7,4421.6,1.0442]
[1757072235304,0.75779017,4421.7,4421.6,1.35630615]
[1757072235698,0.41419017,4421.7,4421.6,1.35630615]
[1757072236802,0.16429017,4421.7,4421.6,1.35630615]
[1757072238306,0.03707472,4421.7,4421.6,1.35630615]
[1757072238605,0.03707472,4421.7,4421.6,1.12430615]
[1757072238798,0.03707472,4421.7,4421.6,1.35630615]
[1757072240002,0.03707472,4421.7,4421.6,1.5585726]
[1757072240202,0.03707472,4421.7,4421.6,1.88878931]
[1757072242413,0.3436,4422.0,4421.6,1.88878931]
[1757072242708,0.2352,4421.8,4421.7,1.66548931]
[1757072243309,0.2352,4421.8,4421.7,1.6677213]
[1757072244203,0.8367,4421.8,4421.7,0.8468213]
[1757072244711,0.8367,4421.8,4421.7,1.6677213]
[1757072245004,0.1127,4422.1,4421.7,1.6677213]
[1757072245207,0.2352,4421.9,4421.8,1.66883878]
[1757072245609,0.2352,4421.9,4421.8,1.33862207]
[1757072246410,0.2352,4421.9,4421.8,1.13523814]
[1757072249111,0.8367,4421.9,4421.8,1.13523814]
[1757072252011,0.4748,4421.9,4421.8,1.13523814]
[1757072252214,0.2352,4421.9,4421.8,1.13523814]
[1757072252509,0.3479,4422.3,4422.2,0.8209]
[1757072252710,0.2352,4422.3,4422.2,1.13523814]
[1757072253112,0.5971,4422.3,4422.2,1.13523814]
[1757072253712,0.8367,4422.3,4422.2,1.13523814]
[1757072263020,0.4748,4422.3,4422.2,1.13523814]
[1757072263321,0.8367,4422.3,4422.2,1.13523814]
[1757072265417,0.23,4422.4,4422.3,0.3436]
[1757072265623,0.4652,4422.4,4422.3,1.13523814]
[1757072266225,0.8271,4422.4,4422.3,1.13523814]
[1757072266524,1.0667,4422.4,4422.3,1.13523814]
[1757072270919,0.8367,4422.4,4422.3,1.13523814]
[1757072271123,1.0667,4422.4,4422.3,1.13523814]
[1757072271923,4.2745,4422.4,4422.3,1.13523814]
[1757072275234,4.2745,4422.4,4422.3,0.8209]
[1757072276525,4.2745,4422.4,4422.3,0.5926]
[1757072276731,4.2745,4422.4,4421.7,0.3553]
[1757072277025,0.845,4421.8,4421.7,0.3553]
[1757072277326,0.845,4421.7,4421.6,0.3553]
[1757072278426,0.845,4421.6,4421.5,2.00455437]
[1757072278626,1.075,4421.6,4421.5,2.00455437]
[1757072280228,1.075,4421.6,4421.5,2.60165437]
[1757072281133,1.075,4421.6,4421.5,0.5971]
[1757072281428,0.4857,4420.7,4420.0,0.1537]
[1757072281633,0.3593,4420.4,4419.6,0.40724]
[1757072281825,0.845,4420.4,4420.3,0.2418]
[1757072282033,1.075,4420.4,4420.3,0.483]
[1757072282626,3.2078,4420.7,4420.3,5.11641]
[1757072282826,0.23,4420.6,4420.3,0.89018]
[1757072283031,3.4378,4420.7,4420.3,0.89018]
[1757072283329,3.4378,4420.7,4420.3,0.483]
[1757072283527,3.4378,4420.7,4420.6,0.483]
[1757072283729,3.7971,4420.7,4420.6,0.8383]
[1757072284238,3.5671,4420.7,4420.6,0.8383]
[1757072284536,3.4378,4420.7,4420.6,0.8383]
[1757072285331,3.2078,4420.7,4420.6,0.8383]
[1757072286035,3.5671,4420.7,4420.6,0.8383]
[1757072286229,3.2078,4420.7,4420.6,4.8383]
[1757072286431,0.23,4421.1,4421.0,0.483]
[1757072286738,3.2078,4421.7,4421.4,0.3553]
[1757072287034,3.2078,4421.7,4421.6,0.8383]
[1757072287430,3.2078,4421.7,4421.6,41.6383]
[1757072287734,0.3593,4421.8,4421.7,0.3553]
[1757072287937,0.3593,4421.8,4421.7,0.8383]
[1757072290141,0.4721,4421.9,4421.8,0.8383]
[1757072290338,0.5985,4421.9,4421.8,0.8383]
[1757072290938,0.4692,4422.2,4422.1,0.483]
[1757072291235,0.7157,4422.2,4422.1,0.483]
[1757072291634,3.8063,4422.2,4422.1,0.8383]
[1757072291939,4.0528,4422.2,4422.1,0.483]
[1757072292439,0.4857,4421.7,4421.6,40.8]
[1757072292638,0.845,4421.7,4421.6,41.03]
[1757072293133,0.845,4421.7,4421.6,41.3853]
[1757072293334,0.5985,4421.7,4421.6,41.3853]
[1757072294842,0.3593,4421.7,4421.6,41.3853]
[1757072296337,0.3593,4421.7,4421.6,40.8]
[1757072296534,0.3593,4421.7,4421.6,41.1553]
[1757072296731,0.1501,4422.0,4421.9,0.483]
[1757072296935,0.7486,4422.0,4421.9,0.8383]
[1757072297138,0.3593,4421.9,4421.6,40.8]
[1757072297335,0.845,4421.7,4421.6,40.8]
[1757072297537,0.5985,4421.7,4421.6,41.1553]
[1757072301045,0.3816,4422.0,4421.9,0.495]
[1757072301344,0.23,4422.2,4421.9,0.8735]
[1757072301644,0.81,4422.3,4422.2,0.8735]
[1757072301844,1.0431,4422.3,4422.2,0.8735]
[1757072302146,1.0431,4422.3,4422.2,0.495]